bitfinex-derivatives/quotes_ETHF0:USTF0_20260128
["timestamp","ask_amount","ask_price","bid_price","bid_amount"]
[1769592432737,0.1107307,2995.1,2994.4,0.14371838]
[1769592432936,2.81084501,2995.0,2994.4,0.14371838]
[1769592433147,2.81084501,2994.9,2994.4,0.14371838]
[1769592433347,0.1107307,2995.1,2994.4,0.14371838]
[1769592433545,2.81083692,2995.0,2994.4,0.14371838]
[1769592433745,0.1107307,2995.1,2994.4,0.14371838]
[1769592433950,2.92229697,2995.0,2994.4,0.14371838]
[1769592434247,0.11146482,2994.9,2994.1,0.14371838]
[1769592438361,0.11020226,2995.1,2994.1,0.14371838]
[1769592438551,2.81045865,2995.0,2994.1,0.14371838]
[1769592438751,0.11012327,2995.0,2994.1,0.14371838]
[1769592439158,2.81059177,2994.9,2994.1,0.14371838]
[1769592439358,0.11012327,2995.0,2994.1,0.14371838]
[1769592439556,2.8106243,2994.9,2994.1,0.14371838]
[1769592439856,0.11012327,2995.0,2994.1,0.14371838]
[1769592440057,2.81062091,2994.9,2994.1,0.14371838]
[1769592440258,0.11012327,2995.0,2994.1,0.14371838]
[1769592440460,2.81064792,2994.9,2994.1,0.14371838]
[1769592440659,0.11012327,2995.0,2994.1,0.14371838]
[1769592440859,2.81064774,2994.9,2994.1,0.14371838]
[1769592441059,0.11012327,2995.0,2994.1,0.14371838]
[1769592441262,2.81064774,2994.9,2994.1,0.14371838]
[1769592441558,40.8,2995.4,2994.8,0.14371838]
[1769592441860,2.81111659,2995.3,2994.8,0.14371838]
[1769592442064,2.81111659,2995.2,2994.8,0.14371838]
[1769592442256,0.10814067,2995.6,2994.8,0.14371838]
[1769592442451,2.91901453,2995.5,2994.8,0.14371838]
[1769592442655,2.81087386,2995.4,2994.8,0.14371838]
[1769592444166,2.81087386,2995.3,2994.8,0.14371838]
[1769592444363,2.81087386,2995.2,2994.8,0.14371838]
[1769592444564,4.16422168,2995.8,2994.8,0.14371838]
[1769592444766,2.8092327,2995.7,2994.8,0.14371838]
[1769592444961,2.8092327,2995.6,2994.8,0.14371838]
[1769592445271,2.8092327,2995.5,2994.8,0.14371838]
[1769592445461,2.8092327,2995.4,2994.8,0.14371838]
[1769592445661,0.16714,2995.8,2994.8,0.14371838]
[1769592445967,2.80828647,2995.7,2994.8,0.14371838]
[1769592446165,2.80828647,2995.6,2994.8,0.14371838]
[1769592446364,2.80828647,2995.5,2994.8,0.14371838]
[1769592446565,0.16714,2995.8,2994.8,0.14371838]
[1769592446767,2.8075016,2995.7,2994.8,0.14371838]
[1769592446962,2.8075016,2995.6,2994.8,0.14371838]
[1769592447168,2.8075016,2995.5,2994.8,0.14371838]
[1769592447360,0.16714,2995.8,2994.8,0.14371838]
[1769592447561,2.80689875,2995.7,2994.8,0.14371838]
[1769592447762,2.80689875,2995.6,2994.8,0.14371838]
[1769592447966,2.80689875,2995.5,2994.8,0.14371838]
[1769592448159,0.10279545,2995.9,2995.2,0.14746614]
[1769592448364,2.80678538,2995.8,2995.2,0.14746614]
[1769592448657,2.80678538,2995.7,2995.2,0.14746614]
[1769592448959,0.00376351,2995.9,2995.2,0.14746614]
[1769592449158,2.8058453,2995.8,2995.2,0.14746614]
[1769592449362,2.8058453,2995.7,2995.2,0.14746614]
[1769592449666,0.00376351,2995.9,2995.2,0.14746614]
[1769592449870,2.80504604,2995.8,2995.2,0.14746614]
[1769592450166,0.00376351,2995.9,2995.2,0.14746614]
[1769592464595,0.11354354,2995.9,2995.2,0.14746614]
[1769592465591,0.00376351,2995.9,2995.2,0.14746614]
[1769592469298,0.10950335,2995.9,2995.2,0.14746614]
[1769592469504,0.10580512,2995.8,2994.9,0.14746614]
[1769592469702,0.10580512,2995.7,2994.9,0.14746614]
[1769592472505,0.16714,2995.8,2994.9,0.14746614]
[1769592472804,0.27445096,2995.8,2994.9,0.14746614]
[1769592473195,0.16714,2995.8,2994.9,0.14746614]
[1769592476703,0.27396919,2995.8,2994.9,0.14746614]
[1769592477915,0.16714,2995.8,2994.9,0.14746614]
[1769592487322,0.00376351,2995.9,2994.9,0.14746614]
[1769592491529,40.8,2996.5,2995.2,0.15070581]
[1769592492021,0.1088896,2996.6,2995.2,0.15070581]
[1769592492423,0.11301671,2996.6,2995.3,0.15070581]
[1769592493818,0.11553774,2996.5,2995.3,0.15070581]
[1769592494019,0.11553774,2996.4,2995.3,0.15070581]
[1769592496731,0.28347977,2996.5,2995.3,0.15070581]
[1769592496930,0.11637977,2996.4,2995.3,0.15070581]
[1769592502937,0.28238843,2996.5,2995.3,0.15070581]
[1769592504625,0.1671,2996.5,2995.3,0.15070581]
[1769592504830,0.28292938,2996.5,2995.3,0.15070581]
[1769592506640,0.1671,2996.5,2995.3,0.15070581]
[1769592508247,0.28258961,2996.5,2995.3,0.15070581]
[1769592510145,0.1671,2996.5,2995.3,0.15070581]
[1769592511641,0.1671,2996.5,2995.5,0.14978479]
[1769592514146,0.00412711,2996.6,2995.5,0.14978479]
[1769592514454,0.00412711,2996.6,2995.9,0.14978479]
[1769592514749,0.00412711,2996.6,2995.9,0.15357803]
[1769592519457,0.28518795,2997.6,2996.1,0.14978479]
[1769592519760,1.47356906,2997.3,2996.1,0.14978479]
[1769592519959,1.47356906,2997.1,2996.1,0.14978479]
[1769592520560,1.47729647,2997.1,2996.1,0.14978479]
[1769592520761,0.00372741,2997.1,2996.1,0.14978479]
[1769592523163,0.00372741,2997.1,2996.3,0.14978479]
[1769592526064,0.00372741,2997.1,2996.5,0.14978479]
[1769592526454,0.11885933,2997.6,2996.5,0.14978479]
[1769592526659,1.47356906,2997.7,2996.5,0.14978479]
[1769592527257,1.59638908,2997.7,2996.5,0.14978479]
[1769592527455,0.00277239,2997.7,2996.7,0.14978479]
[1769592529772,1.47634145,2997.7,2996.7,0.14978479]
[1769592529958,0.1233033,2997.6,2996.7,0.14978479]
[1769592530268,1.47356906,2997.3,2996.7,0.14978479]
[1769592530470,0.1233033,2997.4,2996.7,0.14978479]
[1769592531765,0.1233033,2997.4,2996.4,0.14978479]
[1769592532168,1.59831284,2997.3,2996.4,0.14978479]
[1769592532571,0.1257126,2997.2,2996.4,0.14978479]
[1769592540686,1.47356906,2997.3,2996.4,0.14978479]
[1769592541984,1.59589631,2997.3,2996.4,0.14978479]
[1769592542283,0.12232725,2997.2,2996.4,0.14978479]
[1769592543586,1.47356906,2996.8,2996.4,0.14978479]
[1769592543780,1.47356906,2997.0,2996.1,0.14052958]
[1769592544680,0.11738438,2997.1,2996.1,0.14052958]
[1769592544885,1.47356906,2997.2,2996.1,0.14052958]
[1769592545088,1.47356906,2997.2,2996.1,3.14516038]
[1769592545287,1.47356906,2997.2,2996.2,0.14052958]
[1769592545788,1.59052115,2997.2,2996.2,0.14052958]
[1769592546187,1.59052115,2997.0,2996.2,0.14052958]
[1769592548793,0.12227655,2996.7,2996.0,3.14516038]
[1769592550592,0.12227655,2996.7,2996.0,0.14052958]
[1769592559593,0.10841389,2996.9,2996.0,0.14052958]
[1769592562003,0.10864134,2996.9,2996.0,0.14052958]
[1769592562498,0.10864134,2996.3,2995.9,0.00379324]
[1769592569604,0.10864134,2996.3,2995.5,1.47356906]
[1769592569806,0.10864134,2996.3,2995.5,1.61010255]
[1769592570508,0.10864134,2996.3,2995.6,0.13653349]
[1769592571509,0.10864134,2996.3,2995.5,1.4761322]
[1769592571710,0.10864134,2996.3,2995.5,0.00256314]
[1769592571912,0.10864134,2996.3,2995.5,0.13909663]
[1769592575711,0.10472485,2996.2,2995.5,0.13909663]
[1769592577315,0.16711,2996.3,2995.5,0.13909663]
[1769592577615,0.10416373,2996.2,2995.5,0.13909663]
[1769592578117,0.16711,2996.3,2995.5,0.13909663]
[1769592580808,0.10565143,2996.6,2995.6,0.13653349]
[1769592583614,0.27551791,2996.8,2995.6,0.13653349]
[1769592583815,2.94943388,2996.7,2995.6,0.13653349]
[1769592584114,2.84099597,2996.6,2995.6,0.13653349]
[1769592593724,0.10843791,2996.7,2995.6,0.13653349]
[1769592597822,0.16708,2996.8,2995.6,0.13653349]
[1769592598017,0.28193777,2996.8,2995.6,0.13653349]
[1769592599629,0.11485777,2996.8,2995.6,0.13653349]
[1769592601132,0.16705,2997.3,2995.6,0.13653349]
[1769592601133,0.11788492,2997.2,2995.8,1.47377794]
[1769592601339,2.84582185,2997.1,2996.2,1.47377794]
[1769592601532,0.11788492,2997.2,2996.3,0.13575807]
[1769592602138,0.11788492,2997.2,2995.9,0.13575807]
[1769592604934,0.11788492,2997.2,2995.6,0.13575807]
[1769592610146,0.11788492,2997.2,2995.9,0.13575807]
[1769592611448,2.93937331,2997.1,2995.9,0.13575807]
[1769592611645,0.11919991,2997.1,2995.9,0.13575807]
[1769592623648,40.80277239,2997.7,2995.9,0.13575807]
[1769592623856,0.00277239,2997.7,2996.7,3.99319705]
[1769592624152,0.00277239,2997.7,2996.9,0.13575807]
[1769592624352,0.11798551,2997.6,2996.9,0.13575807]
[1769592624745,0.11798551,2997.6,2996.7,4.13362933]
[1769592624952,0.11798551,2997.6,2996.7,0.14043228]
[1769592633757,2.92687989,2997.5,2996.7,0.14043228]
[1769592633959,0.10857515,2997.5,2996.7,0.14043228]
[1769592634155,2.92688182,2997.4,2996.7,0.14043228]
[1769592634354,0.10857515,2997.4,2996.7,0.14043228]
[1769592635861,0.10826756,2997.6,2996.7,0.14043228]
[1769592636159,2.8181438,2997.5,2996.7,0.14043228]
[1769592636353,2.8181438,2997.4,2996.7,0.14043228]
[1769592636554,0.10826756,2997.6,2996.7,0.14043228]
[1769592636759,2.81812365,2997.5,2996.7,0.14043228]
[1769592636961,2.81812365,2997.4,2996.7,0.14043228]
[1769592637160,0.10826756,2997.6,2996.7,0.14043228]
[1769592637459,2.81812365,2997.5,2996.7,0.14043228]
[1769592637654,0.10826756,2997.6,2996.7,0.14043228]
[1769592638562,0.00277239,2997.7,2996.9,0.13868935]
[1769592640458,0.00277239,2997.7,2996.8,1.4727124]
[1769592640459,0.00277239,2997.7,2997.1,0.13868935]
[1769592644066,0.11042473,2998.2,2997.1,0.13868935]
[1769592644470,1.74568678,2998.3,2997.1,0.13868935]
[1769592644766,0.27297438,2998.3,2997.3,0.13868935]
[1769592644961,0.00359709,2998.3,2997.3,0.13868935]
[1769592645168,0.11428269,2998.3,2997.3,0.13868935]
[1769592646870,0.00359709,2998.3,2997.3,0.13868935]
[1769592647065,0.00359709,2998.3,2997.5,0.13868935]
[1769592651577,0.11289921,2999.4,2998.3,0.13868935]
[1769592651774,0.11289921,2999.0,2998.0,0.13868935]
[1769592651973,0.11289921,2998.8,2998.0,0.13868935]
[1769592652478,0.11289921,2998.2,2998.1,0.42842424]
[1769592652671,1.4727124,2998.5,2997.6,0.13868935]
[1769592653073,0.00392657,2998.8,2997.6,0.13868935]
[1769592653074,1.4727124,2998.7,2997.6,0.13868935]
[1769592653385,2.81743319,2998.6,2997.7,0.14946286]
[1769592653584,0.00392657,2998.8,2997.7,0.15224149]
[1769592653782,2.81808821,2998.7,2997.7,0.15224149]
[1769592653981,0.00392657,2998.8,2997.9,0.14946275]
[1769592654277,2.81797695,2998.7,2997.9,0.14946275]
[1769592654472,0.00392657,2998.8,2998.1,0.14946275]
[1769592654678,0.16693,2999.5,2998.3,0.15142371]
[1769592654877,2.81663633,2999.4,2998.3,0.15142371]
[1769592655178,2.81663633,2999.3,2998.3,0.15142371]
[1769592655378,2.81663633,2999.2,2998.3,0.15142371]
[1769592655578,2.81663633,2999.1,2998.3,0.15142371]
[1769592655778,2.81663633,2999.0,2998.3,0.15142371]
[1769592655979,0.00307457,2999.2,2998.3,0.15142371]
[1769592656284,2.81543315,2999.1,2998.3,0.15142371]
[1769592656575,2.81543315,2999.0,2998.3,0.15142371]
[1769592656782,0.00307457,2999.2,2998.3,0.15142371]
[1769592656984,2.81446333,2999.1,2998.3,0.15142371]
[1769592657183,0.00307457,2999.2,2998.3,0.15142371]
[1769592657184,2.81446333,2999.0,2998.3,0.15142371]
[1769592657381,0.00307457,2999.2,2998.3,0.15142371]
[1769592657684,2.81366948,2999.1,2998.3,0.15142371]
[1769592657885,0.00307457,2999.2,2998.7,0.15174794]
[1769592660480,0.32723036,2999.7,2997.9,3.4317124]
[1769592660481,1.4727124,2999.7,2998.9,0.15233158]
[1769592660685,1.4727124,2999.7,2998.7,0.15269041]
[1769592661381,1.47520705,2999.7,2998.7,0.15269041]
[1769592662585,0.00249465,2999.7,2998.7,0.15269041]
[1769592663190,42.33075811,3000.3,2999.2,0.15254209]
[1769592663486,2.8072476,3000.2,2999.2,0.15254209]
[1769592663787,2.8072476,3000.1,2999.2,0.15254209]
[1769592663984,2.8072476,3000.0,2999.2,0.15254209]
[1769592664190,40.8,3000.2,2999.2,0.15254209]
[1769592664489,2.80716965,3000.1,2999.2,0.15254209]
[1769592664684,1.4727124,3000.1,2999.2,0.15254209]
[1769592664886,1.4727124,2999.9,2999.2,0.15254209]
[1769592666391,1.4727124,2999.9,2998.8,0.15284468]
[1769592667099,40.80326294,3000.2,2999.8,0.15295235]
[1769592667100,0.00326294,3000.2,2999.8,0.15295235]
[1769592667282,0.19318525,3000.5,3000.2,0.15295235]
[1769592667592,1.4727124,3000.9,3000.2,0.15295235]
[1769592668094,1.4727124,3000.5,2999.6,0.15295218]
[1769592668291,0.00277502,3000.5,2999.6,0.15642616]
[1769592668685,0.49854439,3000.7,2999.8,0.15392772]
[1769592668991,0.49854439,3000.7,2999.9,0.675799]
[1769592669186,0.16683,3001.3,2999.6,0.00347398]
[1769592669187,0.16683,3001.3,3000.1,0.15392772]
[1769592669495,1.4727124,3001.0,3000.2,0.52187128]
[1769592669697,1.4755077,3001.0,3000.3,0.52187128]
[1769592669991,1.4727124,3000.8,3000.1,0.15392772]
[1769592670584,1.4755077,3001.0,3000.1,0.15392772]
[1769592671693,0.0027953,3001.0,3000.1,0.15392772]
[1769592672388,1.4727124,3000.5,2999.7,0.15326498]
[1769592672588,0.0027953,3001.0,2999.7,0.15326498]
[1769592672589,1.4727124,3000.9,2999.7,0.15326498]
[1769592672887,0.0027953,3001.0,2999.9,0.15227587]
[1769592673088,1.4727124,3000.9,2999.9,0.15227587]
[1769592673281,1.4727124,3000.5,2999.6,0.15574985]
[1769592674285,0.0027953,3001.0,2999.6,0.15574985]
[1769592674482,1.4727124,3000.6,2999.6,0.15574985]
[1769592676094,1.4727124,3000.0,2999.3,0.15230426]
[1769592676502,1.4727124,3000.2,2999.3,0.15230426]
[1769592677093,1.4727124,3000.2,2999.3,0.15473466]
[1769592677693,0.16687,3000.6,2999.3,0.15473466]
[1769592677897,0.0027953,3001.0,3000.3,1.62623199]
[1769592678086,3.39702316,3001.6,2999.7,1.4727124]
[1769592678087,3.39702316,3001.6,3000.6,0.15351959]
[1769592678588,3.339,3001.6,3000.6,0.15351959]
[1769592678785,3.339,3001.6,2999.7,1.6396324]
[1769592678786,1.4727124,3001.6,3000.8,0.15269087]
[1769592679191,1.47620263,3001.6,3000.8,0.15269087]
[1769592679595,0.00349023,3001.6,3000.4,0.15269087]
[1769592679790,40.8,3001.5,3000.4,0.15269087]
[1769592680204,40.8,3001.5,2999.5,3.338]
[1769592680205,40.8,3001.5,3000.1,0.15269072]
[1769592680394,43.00405013,3001.5,3000.1,0.15269072]
[1769592680901,40.8,3001.5,3000.1,0.15269072]
[1769592681309,43.00405013,3001.5,3000.1,0.15269072]
[1769592682097,43.00405013,3001.5,3000.2,0.60815372]
[1769592682399,0.16683,3001.4,3000.3,0.45217026]
[1769592682602,0.16683,3001.4,3000.4,0.45217026]
[1769592682897,0.16683,3001.4,3000.5,0.45217026]
[1769592683091,0.16683,3001.4,3000.6,0.45217026]
[1769592683287,0.16683,3001.4,3000.7,0.45239277]
[1769592683501,0.16683,3001.4,2999.9,0.15598346]
[1769592683701,0.16683,3001.4,3000.0,0.60845434]
[1769592683997,0.16683,3001.4,3000.1,0.60845434]
[1769592684198,0.16683,3001.4,2999.4,2.9685517]
[1769592684199,0.16683,3001.4,3000.2,0.45240188]
[1769592684499,0.16683,3001.4,3000.3,0.45240188]
[1769592684694,0.16683,3001.4,3000.4,0.45240188]
[1769592684902,0.16683,3001.4,3000.5,0.45240188]
[1769592685099,0.16683,3001.4,3000.6,0.45240188]
[1769592685404,40.8,3001.3,3000.7,0.45240188]
[1769592685700,0.00117318,3001.2,3000.0,0.15537599]
[1769592688301,40.96919688,3001.3,3000.0,0.15537599]
[1769592689101,0.00242235,3001.2,3000.0,0.15537599]
[1769592690204,40.96683,3001.3,3000.0,0.15537599]
[1769592693411,0.00643176,3001.2,3000.0,0.15537599]
[1769592694506,40.96683,3001.3,3000.0,0.15537599]
[1769592697608,40.96683,3001.3,3000.2,0.15379464]
[1769592697912,40.96683,3001.3,3000.4,0.15379464]
[1769592698211,0.00563384,3001.2,3000.5,0.42576313]
[1769592698414,0.00563384,3001.2,3000.6,0.42576313]
[1769592698613,0.00563384,3001.2,3000.7,0.42576313]
[1769592698813,0.00563384,3001.2,3000.3,0.15379464]
[1769592698814,0.00563384,3001.2,3000.8,0.42576313]
[1769592699007,0.00563384,3001.2,3000.9,0.00724099]
[1769592699206,40.96683,3001.3,3000.3,0.15379464]
[1769592701515,40.97195073,3001.3,3000.3,0.15379464]
[1769592701716,0.00511751,3001.2,3000.3,0.15379464]
[1769592704502,40.96683,3001.3,3000.3,0.15379464]
[1769592705217,40.9724003,3001.3,3000.3,0.15379464]
[1769592705807,0.00556722,3001.2,3000.3,0.15379464]
[1769592707210,0.16687,3000.7,2999.4,0.15381576]
[1769592710412,0.16687,3000.6,2999.4,0.15381576]
[1769592710620,0.16688,3000.5,2999.4,0.15381576]
[1769592710819,0.00488683,3000.4,2999.4,0.15381576]
[1769592711521,0.16688,3000.5,2999.4,0.15381576]
[1769592713912,0.00516393,3000.4,2999.4,0.15381576]
[1769592715022,0.16688,3000.5,2999.4,0.15381576]
[1769592716420,0.16688,3000.4,2999.4,0.15381576]
[1769592719626,0.16689,3000.2,2999.4,0.15381576]
[1769592722325,44.146,3001.3,2999.4,0.15381576]
[1769592722326,5.554,3000.8,2999.4,0.15381576]
[1769592722621,0.16687,3000.7,2999.4,0.15381576]
[1769592727730,2.85766621,3000.6,2999.4,0.15381576]
[1769592727931,2.85766621,3000.5,2999.4,0.15381576]
[1769592728140,2.85766621,3000.4,2999.4,0.15381576]
[1769592728431,2.85766621,3000.3,2999.4,0.15381576]
[1769592728623,2.85766621,3000.2,2999.4,0.15381576]
[1769592728823,2.85766621,3000.1,2999.4,0.15381576]
[1769592729025,0.16687,3000.7,2999.4,0.15381576]
[1769592729328,2.8578665,3000.6,2999.4,0.15381576]
[1769592729531,2.8578665,3000.5,2999.4,0.15381576]
[1769592729728,2.8578665,3000.4,2999.4,0.15381576]
[1769592729925,2.8578665,3000.3,2999.4,0.15381576]
[1769592730129,2.8578665,3000.2,2999.4,0.15381576]
[1769592730329,2.8578665,3000.1,2999.4,0.15381576]
[1769592730527,0.16687,3000.7,2999.4,0.15381576]
[1769592730731,2.85848078,3000.6,2999.4,0.15381576]
[1769592731031,2.85848078,3000.5,2999.4,0.15381576]
[1769592731229,2.85848078,3000.4,2999.4,0.15381576]
[1769592731427,2.85848078,3000.3,2999.4,0.15381576]
[1769592731622,2.85848078,3000.2,2999.4,0.15381576]
[1769592731830,2.85848078,3000.1,2999.4,0.15381576]
[1769592732132,2.85848078,3000.0,2998.6,0.61909172]
[1769592732326,2.85848078,2999.9,2998.6,0.61909172]
[1769592732630,2.85848078,2999.8,2998.6,0.61909172]
[1769592732829,2.85848078,2999.7,2998.6,0.61909172]
[1769592733024,2.85848078,2999.6,2998.6,0.62194379]
[1769592733227,2.85918761,2999.5,2998.6,0.62194379]
[1769592733431,0.00257622,2999.5,2998.6,0.62194379]
[1769592733921,0.00257622,2999.5,2998.7,0.14576768]
[1769592741043,0.1669,3000.1,2998.7,0.14576768]
[1769592741347,2.86073069,3000.0,2998.7,0.14576768]
[1769592741547,2.86073069,2999.9,2998.7,0.14576768]
[1769592741842,0.1669,3000.1,2998.7,0.14576768]
[1769592742042,2.86053928,3000.0,2998.7,0.14576768]
[1769592742345,2.86053928,2999.9,2998.7,0.14576768]
[1769592742641,2.86053928,2999.8,2998.7,0.14576768]
[1769592742840,0.16934262,3000.1,2998.7,0.14576768]
[1769592743042,2.86089094,3000.0,2998.7,0.14576768]
[1769592743241,2.86089094,2999.9,2998.7,0.14576768]
[1769592743444,2.86089094,2999.8,2998.7,0.14576768]
[1769592743639,0.16934262,3000.1,2998.7,0.14576768]
[1769592743841,2.86076133,3000.0,2998.7,0.14576768]
[1769592744143,0.16934262,3000.1,2998.7,0.14576768]
[1769592744144,2.86076133,2999.9,2998.7,0.14576768]
[1769592744341,2.86076133,2999.8,2998.7,0.14576768]
[1769592744645,0.16934262,3000.1,2998.7,0.14576768]
[1769592744941,2.86064431,3000.0,2998.7,0.14576768]
[1769592745128,2.86064431,2999.9,2998.7,0.14576768]
[1769592745333,0.16934262,3000.1,2998.7,0.14576768]
[1769592745534,2.86059323,3000.0,2998.7,0.14576768]
[1769592745744,2.86059323,2999.9,2998.7,0.14576768]
[1769592745940,0.16934262,3000.1,2998.7,0.14576768]
[1769592746141,2.8605065,3000.0,2998.7,0.14576768]
[1769592746344,0.16934262,3000.1,2998.7,0.14576768]
[1769592746641,2.86045152,3000.0,2998.7,0.14576768]
[1769592746941,0.16934262,3000.1,2998.6,0.56975795]
[1769592746942,0.05218584,2999.2,2998.6,0.56975795]
[1769592755152,40.96694,2999.3,2998.6,0.56975795]
[1769592755450,40.96694,2999.3,2998.6,0.72059399]
[1769592758240,0.00244262,3000.1,2999.3,0.15094907]
[1769592758441,0.00244262,3000.1,2999.7,0.15094907]
[1769592758653,1.63803495,3001.0,2999.8,0.15094818]
[1769592758853,1.47118495,3000.8,2999.8,0.15094818]
[1769592759458,1.47118495,3000.6,2999.8,0.15094818]
[1769592759646,0.13578277,3000.7,2999.8,0.15094818]
[1769592765372,0.00268145,3000.8,2999.8,0.15094818]
[1769592765562,0.30261277,3001.4,2999.8,0.15094818]
[1769592766470,0.00320715,3001.4,3000.0,0.17132725]
[1769592766665,0.13898992,3001.4,3000.1,2.364]
[1769592766861,0.13898992,3001.4,3000.2,0.17210802]
[1769592767168,0.13898992,3001.4,3000.3,0.17210802]
[1769592773373,0.13578277,3001.2,3000.0,0.16997015]
[1769592773867,0.13578277,3001.0,3000.0,0.16997015]
[1769592774073,0.13578277,3000.8,3000.0,0.16997015]
[1769592775860,0.4332746,3001.3,3000.0,0.16997015]
[1769592776065,0.00320715,3001.4,3000.0,0.16997015]
[1769592776066,0.4332746,3001.1,3000.0,0.16997015]
[1769592776267,2.83618036,3001.0,3000.0,0.16997015]
[1769592776872,9.93244215,3001.9,3000.7,0.43288574]
[1769592777176,0.43449106,3003.0,3000.9,0.43288574]
[1769592777376,5.147,3002.9,3000.9,0.43288574]
[1769592778068,2.603,3002.8,3001.0,0.43288574]
[1769592778275,5.941,3002.8,3001.0,0.43288574]
[1769592778970,0.4332746,3002.7,3001.0,0.43288574]
[1769592779465,0.4332746,3002.5,3001.0,0.43288574]
[1769592781375,0.4332746,3002.3,3001.1,0.43288574]
[1769592781676,0.4332746,3002.3,3001.5,0.43288574]
[1769592782469,0.4332746,3002.3,3001.2,1.90085732]
[1769592782669,0.4332746,3002.3,3001.3,0.43288574]
[1769592783275,0.4332746,3002.1,3001.3,0.43288574]
[1769592785674,0.4332746,3002.1,3001.0,1.46797158]
[1769592785675,0.4332746,3002.1,3001.0,1.92950838]
[1769592786081,0.4332746,3002.1,3001.2,1.46797158]
[1769592787283,0.46793671,3002.0,3001.2,1.46797158]
[1769592789380,0.46793671,3002.0,3001.2,1.92950838]
[1769592794584,0.46793671,3002.0,3001.3,0.4615368]
[1769592795482,0.42742453,3001.8,3001.0,0.42405076]
[1769592797090,0.42742453,3001.8,3000.9,0.00382402]
[1769592797490,0.42742453,3001.8,3000.9,0.42787478]
[1769592799792,0.42742453,3001.4,3000.9,0.00382402]
[1769592800289,0.42742453,3001.4,3000.7,0.42405076]
[1769592800693,0.42742453,3001.4,3000.6,1.46797158]
[1769592801089,0.42742453,3001.4,3000.6,1.89202234]
[1769592801398,0.42742453,3001.4,3000.6,0.00413732]
[1769592809805,0.42742453,3001.4,3000.6,0.44090176]
[1769592813420,0.42742453,3001.4,3000.6,0.00413732]
[1769592820130,0.44194364,3001.2,3000.6,0.00413732]
[1769592826734,0.44194364,3001.7,3000.6,0.44090176]
[1769592828036,0.44194364,3001.7,3000.7,0.43676444]
[1769592828333,0.44194364,3002.1,3000.9,0.43676444]
[1769592830134,0.44194364,3001.9,3000.9,0.43676444]
[1769592835231,0.41590836,3002.2,3000.9,0.43676444]
[1769592840348,0.41590836,3002.0,3000.7,3.37926536]
[1769592840639,0.41590836,3002.0,3000.6,0.42125036]
[1769592840640,0.41590836,3001.9,3000.6,0.42125036]
[1769592843444,0.40100836,3001.9,3000.6,0.42125036]
[1769592843838,0.40100836,3001.9,3000.7,0.41711304]
[1769592844342,0.40100836,3001.9,3000.6,2.96628964]
[1769592844544,0.40100836,3001.9,3000.6,3.38340268]
[1769592844848,0.40100836,3001.9,3000.8,0.41711304]
[1769592845346,7.519,3002.3,3000.8,0.41711304]
[1769592845543,0.41590836,3002.2,3000.8,0.41711304]
[1769592847545,0.41590836,3002.2,3000.7,2.96215232]
[1769592847546,5.95990836,3001.9,3000.7,2.96215232]
[1769592847751,0.41590836,3001.8,3000.6,2.96215232]
[1769592848544,0.41590836,3001.8,3000.6,3.37926536]
[1769592849350,0.41590836,3001.8,3000.7,0.41711304]
[1769592850352,5.544,3001.7,3000.7,0.41711304]
[1769592850550,0.41590836,3001.7,3000.7,0.41711304]
[1769592852452,0.41590836,3001.7,3000.8,0.41711304]
[1769592860654,0.41590836,3001.6,3000.8,0.41711304]
[1769592862542,0.41988228,3001.6,3000.8,0.42114017]
[1769592866342,0.00397392,3001.6,3000.8,0.42114017]
[1769592866950,0.37990495,3001.6,3000.8,0.42114017]
[1769592867554,0.00397392,3001.6,3000.8,0.42114017]
[1769592873659,0.37990495,3001.6,3000.8,0.42114017]
[1769592873864,0.37990495,3001.6,3000.9,3.33476613]
[1769592874063,0.37990495,3001.6,3001.0,0.37261381]
[1769592874256,0.00397392,3001.6,3001.0,0.37261381]
[1769592874957,0.37990495,3001.6,3000.9,2.96215232]
[1769592875760,0.37990495,3001.6,3000.9,3.33476613]
[1769592880467,0.37990495,3001.6,3001.0,0.37261381]
[1769592899975,0.37990495,3001.6,3000.9,2.96215232]
[1769592900275,0.37990495,3001.6,3000.8,0.00402713]
[1769592900875,0.31532298,3001.4,3000.8,0.00402713]
[1769592901176,0.31532298,3001.4,3000.4,3.30429057]
[1769592901383,0.31532298,3001.4,3000.4,0.34213825]
[1769592902081,0.31532298,3001.4,3000.4,0.34537554]
[1769592902279,0.31532298,3001.4,3000.5,0.34213825]
[1769592905786,0.31532298,3001.4,3000.6,1.810913]
[1769592907084,0.31532298,3001.4,3000.8,1.46877475]
[1769592907485,0.3192969,3001.6,3000.9,0.34213825]
[1769592908385,0.3192969,3001.6,3000.8,1.46877475]
[1769592908386,0.3192969,3001.6,3000.7,0.34213825]
[1769592908586,0.00397392,3001.6,3001.0,1.810913]
[1769592908888,0.00397392,3001.6,3001.1,0.34213825]
[1769592909587,0.31532298,3001.9,3001.1,0.34213825]
[1769592910180,0.31532298,3001.9,3001.2,1.46877475]
[1769592910381,0.31532298,3001.9,3001.2,1.810913]
[1769592910581,0.31798342,3001.9,3001.2,1.810913]
[1769592910790,0.00266044,3001.9,3001.3,0.34213825]
[1769592915089,0.31532298,3002.0,3001.3,0.34213825]
[1769592916187,0.31845869,3002.0,3001.3,0.34213825]
[1769592916389,0.31845869,3002.0,3001.0,1.810913]
[1769592916978,0.31845869,3002.0,3001.1,0.34213825]
[1769592925897,0.30527096,3001.9,3001.1,0.34213825]
[1769592931212,0.30527096,3001.8,3001.1,0.34213825]
[1769592941217,0.30527096,3001.8,3000.9,0.29245301]
[1769592941520,0.30527096,3001.8,3000.8,2.96215232]
[1769592942117,0.30527096,3001.8,3000.8,3.25460533]
[1769592942317,0.30527096,3001.8,3000.7,3.25460533]
[1769592942721,0.30527096,3001.8,3000.7,0.29245301]
[1769592944122,0.30527096,3001.8,3000.6,2.96215232]
[1769592944420,0.30527096,3001.8,3000.6,3.25460533]
[1769592947126,0.30527096,3001.8,3000.6,0.29245301]
[1769592949524,0.28247096,3001.8,3000.6,0.29245301]
[1769592954031,0.30527096,3001.7,3000.6,0.29245301]
[1769592961136,0.24407023,3001.6,3000.6,0.29245301]
[1769592961337,5.78807023,3001.6,3000.6,0.29245301]
[1769592963839,5.78807023,3001.6,3000.7,0.25607788]
[1769592965034,0.41399594,3002.0,3000.8,0.25607788]
[1769592965240,0.24720594,3002.0,3000.9,0.25607788]
[1769592969545,0.24720594,3002.0,3001.0,0.25607788]
[1769592970155,0.00313571,3002.0,3001.2,0.25607788]
[1769592970541,0.24407023,3002.4,3001.2,0.25607788]
[1769592970742,0.24407023,3002.4,3001.3,0.25607788]
[1769592971647,0.24657281,3002.4,3001.3,0.25607788]
[1769592975049,0.00250258,3002.4,3001.3,0.25607788]
[1769592986273,0.00250258,3002.4,3001.3,3.2182302]
[1769592986475,0.00250258,3002.4,3001.4,0.24570415]
[1769592988371,0.24568837,3002.9,3001.6,0.24570415]
[1769592988680,8.29730124,3003.5,3001.5,1.46861643]
[1769592988681,0.24568837,3003.1,3001.9,0.24570415]
[1769592989475,0.24834073,3003.1,3001.9,0.24570415]
[1769592990269,0.00265236,3003.1,3001.9,0.24570415]